lending/lending_fUSD_20251015
["ID","MTS","AMOUNT","RATE_DAILY","PERIOD"]
[391360887,1760566247471,-1000.0,0.0002717,2]
[391360888,1760566247480,-421.57860754,0.00027185,2]
[391360889,1760566247489,-150.0,0.0002719,2]
[391360890,1760566247499,-1614.88377273,0.00027197,2]
[391360891,1760566247560,-22178.00000001,0.00027197,2]
[391360892,1760566248126,-994.97830999,0.00025022,2]
[391360893,1760566269881,200.0,0.00027397,120]
[391360894,1760566381727,156.4,0.00012131,2]
[391360895,1760566432787,500.0,0.00027294,120]
[391360896,1760566449689,863.04329261,0.00027397,120]
[391360898,1760566507949,150.0,0.00027397,120]
[391360902,1760566542681,1000.0,0.00027397,120]
[391360912,1760566565246,1000.0,0.00027397,120]
[391360979,1760566879124,4914.11596702,0.00027397,120]
[391360980,1760566887546,1011.36,0.00027397,120]
[391360982,1760566930494,2000.0,0.00027397,120]
[391360983,1760566943919,2000.0,0.00027397,120]
[391360984,1760566956920,2000.0,0.00027397,120]
[391360985,1760566977748,2911.49,0.00027397,120]
[391360986,1760566985491,1263.65771,0.0002739,120]
[391360987,1760567020604,500.0,0.00027396,120]
[391360990,1760567206527,915.89,0.00027397,120]
[391360991,1760567255461,436.57,0.00027,120]
[391361005,1760567431672,-300.0,0.00014498,2]
[391361007,1760567431684,-158.19132845,0.00014498,2]
[391361010,1760567431696,-1041.80867155,0.00014498,2]
[391361011,1760567431706,-300.0,0.00014499,2]
[391361012,1760567431716,-300.0,0.00014499,2]
[391361013,1760567431725,-312.34138957,0.00014499,2]
[391361014,1760567431778,-733.65861043,0.00014499,2]
[391361015,1760567431788,-2000.0,0.00014499,2]
[391361016,1760567431798,-195.0,0.00014499,2]
[391361017,1760567431808,-300.0,0.00014499,2]
[391361018,1760567431818,-888.60556259,0.00014499,2]
[391361019,1760567431827,-2500.0,0.00014499,2]
[391361020,1760567431837,-236.59533907,0.00014499,2]
[391361021,1760567431848,-250.0,0.000145,2]
[391361022,1760567431858,-16557.08775782,0.000145,3]
[391361023,1760567431870,-624.23571564,0.000145,3]
[391361024,1760567431879,-195.0,0.00014504,2]
[391361025,1760567431889,-2500.0,0.00014523,2]
[391361026,1760567431898,-156.4,0.00014558,2]
[391361027,1760567431909,-2671.11659665,0.000149,2]
[391361028,1760567435644,-3528.99393452,0.000149,2]
[391361029,1760567435808,-4471.37342937,0.000149,2]
[391361030,1760567435818,-2517.62015962,0.000149,2]
[391361113,1760567438402,-745.83216302,0.000149,2]
[391361117,1760567438431,-615.91154288,0.000149,2]
[391361119,1760567438443,-5605.89029369,0.000149,2]
[391361121,1760567438459,-1689.1549634,0.000149,2]
[391361122,1760567439751,-464.62641051,0.000149,2]
[391361123,1760567439763,-1426.67463812,0.000149,2]
[391361124,1760567439851,-1542.29802913,0.000149,2]
[391361125,1760567439861,-513.00588613,0.000149,2]
[391361126,1760567439871,-271.59608474,0.000149,2]
[391361127,1760567439883,-42.68737831,0.000149,2]
[391361128,1760567439893,-150.0,0.00014998,2]
[391361129,1760567439902,-106.50509547,0.00014999,2]
[391361130,1760567439913,-358.72743563,0.00014999,2]
[391361131,1760567439923,-396.49162665,0.00014999,2]
[391361132,1760567439932,-170.4516455,0.00014999,2]
[391361133,1760567439943,-500.0,0.00014999,2]
[391361134,1760567439952,-587.59038386,0.00014999,2]
[391361135,1760567439961,-500.0,0.00014999,2]
[391361136,1760567439970,-458.14655158,0.00014999,2]
[391361137,1760567439980,-500.0,0.00014999,2]
[391361138,1760567439989,-500.0,0.00014999,2]
[391361139,1760567439998,-500.0,0.00014999,2]
[391361140,1760567440008,-500.0,0.00014999,2]
[391361141,1760567440017,-33.49235678,0.00014999,2]
[391361142,1760567440029,-466.50764322,0.00014999,2]
[391361143,1760567440038,-500.0,0.00014999,2]
[391361144,1760567440048,-500.0,0.00014999,2]
[391361145,1760567440057,-500.0,0.00014999,2]
[391361146,1760567440067,-500.0,0.00014999,2]
[391361147,1760567440077,-500.0,0.00014999,2]
[391361148,1760567440087,-500.0,0.00014999,2]
[391361149,1760567440102,-500.0,0.00014999,2]
[391361150,1760567440111,-500.0,0.00014999,2]
[391361151,1760567440122,-500.0,0.00014999,2]
[391361152,1760567440132,-500.0,0.00014999,2]
[391361153,1760567440142,-500.0,0.00014999,2]
[391361154,1760567440152,-500.0,0.00014999,2]
[391361155,1760567440163,-500.0,0.00014999,2]
[391361156,1760567440173,-500.0,0.00014999,2]
[391361157,1760567440183,-253.55404258,0.00014999,2]
[391361158,1760567440193,-1249.22000049,0.00014999,5]
[391361159,1760567440203,-1249.22000049,0.00014999,5]
[391361160,1760567440214,-1088376.55132874,0.00015,2]
[391361161,1760567440224,-336110.09086856,0.00015,2]
[391361178,1760567442871,-220.66140726,0.0001499,2]
[391361179,1760567442880,-717.87046501,0.0001499,2]
[391361180,1760567442892,-1028.23826436,0.0001499,2]
[391361181,1760567442903,-1949.49127063,0.0001499,2]
[391361182,1760567442913,-589.28447341,0.0001499,2]
[391361183,1760567442960,-3106.31552659,0.0001499,2]
[391361184,1760567442970,-196829.72890982,0.00015,2]
[391361190,1760567445860,-59501.50320827,0.00015,2]
[391361191,1760567445870,-83659.37720376,0.00015,2]
[391361192,1760567445880,-213.00799897,0.000156,2]
[391361193,1760567445890,-475.49624517,0.00015601,2]
[391361194,1760567445899,-213.00799897,0.000158,2]
[391361195,1760567445909,-213.00799897,0.000159,2]
[391361196,1760567445922,-195.0,0.00015948,2]
[391361197,1760567445931,-300.0,0.00015948,2]
[391361198,1760567445941,-1151.0,0.00015948,2]
[391361199,1760567445951,-250.0,0.00015949,2]
[391361200,1760567445960,-2500.0,0.00015949,2]
[391361201,1760567445970,-300.0,0.00015949,2]
[391361202,1760567445979,-2000.0,0.00015949,2]
[391361203,1760567445989,-195.0,0.00015949,2]
[391361204,1760567446000,-300.0,0.00015949,2]
[391361205,1760567446010,-864.63898374,0.00016,2]
[391361206,1760567446020,-151.0,0.00016004,2]
[391361207,1760567446030,-151.0,0.00016004,2]
[391361208,1760567446040,-151.0,0.00016004,2]
[391361209,1760567446050,-151.0,0.00016004,2]
[391361210,1760567446060,-151.0,0.00016004,2]
[391361211,1760567446069,-151.0,0.00016004,2]
[391361212,1760567446079,-151.0,0.00016004,2]
[391361213,1760567446089,-151.0,0.00016004,2]
[391361214,1760567446099,-151.0,0.00016004,2]
[391361215,1760567446110,-151.0,0.00016004,2]
[391361216,1760567446119,-155.94364059,0.00016004,2]
[391361217,1760567446130,-150.0,0.00016013,2]
[391361218,1760567446140,-250.0,0.00016013,2]
[391361219,1760567446150,-213.00799897,0.000161,2]
[391361226,1760567446619,-255.0,0.00016123,2]
[391361227,1760567446672,-5000.001733,0.000162,5]
[391361228,1760567446682,-213.00799897,0.000162,2]
[391361229,1760567446691,-13587.08207798,0.00016211,2]
[391361230,1760567446703,-1020.92612239,0.00016211,2]
[391361231,1760567446712,-10671.4839605,0.00016222,2]
[391361232,1760567446722,-200.0,0.0001634,2]
[391361233,1760567446732,-162.66,0.0001644,2]
[391361234,1760567446741,-355.55362886,0.000166,2]
[391361235,1760567446751,-314.28346299,0.00016668,2]
[391361236,1760567446760,-171.76978453,0.000169,2]
[391361237,1760567446770,-226.66033568,0.00016957,2]
[391361238,1760567446780,-156.4,0.00016984,2]
[391361239,1760567446789,-901.81009184,0.00017,2]
[391361240,1760567446799,-250.0,0.00017,2]
[391361241,1760567446808,-6591.42736509,0.00017,2]
[391361242,1760567446817,-17006.86097164,0.00017,2]
[391361243,1760567446826,-1580.77729383,0.00017,2]
[391361244,1760567446836,-901.81009184,0.000172,2]
[391361245,1760567446845,-901.81009184,0.000173,2]
[391361246,1760567446854,-178.0,0.00017338,2]
[391361247,1760567446864,-901.81009184,0.000175,2]
[391361248,1760567446874,-20000.0,0.000175,2]
[391361249,1760567446883,-14608.00820037,0.00017522,2]
[391361250,1760567446892,-10671.4839605,0.00017544,2]
[391361251,1760567446901,-901.81009184,0.000177,2]
[391361252,1760567446910,-50091.41152776,0.000179,2]
[391361253,1760567446920,-500.0,0.00017973,2]
[391361254,1760567446930,-500.0,0.00017973,2]
[391361255,1760567446939,-500.0,0.00017973,2]
[391361256,1760567446948,-500.0,0.00017973,2]
[391361257,1760567446958,-537.71569029,0.00017973,2]
[391361258,1760567446967,-500.0,0.00017973,2]
[391361259,1760567446977,-500.0,0.00017973,2]
[391361260,1760567446986,-500.0,0.00017973,2]
[391361261,1760567446995,-500.0,0.00017973,2]
[391361262,1760567447004,-500.0,0.00017973,2]
[391361263,1760567447014,-260.34319934,0.00017973,2]
[391361264,1760567447023,-500.0,0.00017973,2]
[391361265,1760567447033,-1682.73216602,0.00018,2]
[391361266,1760567447042,-47752.45187101,0.00018,2]
[391361267,1760567447084,-11205.30407656,0.00018,2]
[391361268,1760567532169,2000.0,0.00027197,120]
[391361269,1760567532217,2000.0,0.00027197,120]
[391361270,1760567532300,2000.0,0.00027197,120]
[391361273,1760567611173,582.54046285,0.00027397,120]
[391361287,1760567619304,500.0,0.00027287,120]
[391361298,1760567631294,500.0,0.00027356,120]
[391361356,1760567682199,5039.32720833,0.00027397,120]
[391361464,1760567722698,1500.0,0.00027397,120]
[391362174,1760568003525,-232.6299789,0.00013699,2]
[391362175,1760568005749,-190.21738323,0.00013699,2]
[391362214,1760568498566,-161.63263787,0.00013699,2]
[391362215,1760568498588,-23.80466624,0.00013699,2]
[391362216,1760568618603,-190.13397896,0.00013699,2]
[391362217,1760568618626,-64.19201139,0.00013739,2]
[391362222,1760568631882,-235.80798861,0.00013739,2]
[391362223,1760568631892,-250.0,0.0001378,2]
[391362224,1760568631902,-195.0,0.00013861,2]
[391362225,1760568631912,-300.0,0.00014132,2]
[391362226,1760568631921,-415.04395923,0.00014132,2]
[391362227,1760568631931,-195.0,0.00014335,2]
[391362228,1760568631940,-166.66,0.00014984,2]
[391362229,1760568631949,-160.0,0.00015,2]
[391362230,1760568631959,-300.0,0.00015066,2]
[391362231,1760568631968,-300.0,0.00015066,2]
[391362232,1760568631978,-1200.0,0.00015066,2]
[391362233,1760568631988,-581.0,0.00015067,2]
[391362234,1760568631997,-255.0,0.00015067,2]
[391362235,1760568632007,-8.8458961,0.00015068,2]
[391362236,1760568632025,-186.1541039,0.00015068,2]
[391362237,1760568632034,-422.81008989,0.00015068,2]
[391362238,1760568632044,-250.0,0.00015068,2]
[391362239,1760568632053,-195.0,0.00015068,2]
[391362240,1760568632062,-250.0,0.00015068,2]
[391362241,1760568632071,-300.0,0.00015068,2]
[391362242,1760568632080,-1218.54165654,0.00015068,2]
[391362243,1760568632090,-166.66,0.00015299,2]
[391362244,1760568632099,-1562.0,0.00015396,2]
[391362245,1760568632108,-475.49624517,0.00015598,2]
[391362246,1760568632117,-1491.05599277,0.000156,2]
[391362247,1760568632126,-166.66,0.00015615,2]
[391362248,1760568632136,-235.0,0.00015696,2]
[391362249,1760568632145,-1491.05599277,0.000158,2]
[391362250,1760568632155,-1491.05599277,0.000159,2]
[391362251,1760568632164,-2751.0,0.00015925,2]
[391362252,1760568632174,-166.66,0.0001593,2]
[391362253,1760568632185,-257.96859151,0.00016048,2]
[391362254,1760568632194,-200.0,0.00016064,2]
[391362255,1760568632203,-151.0,0.00016064,2]
[391362256,1760568632212,-151.0,0.00016064,2]
[391362257,1760568632222,-151.0,0.00016064,2]
[391362258,1760568632231,-244.99790245,0.00016064,2]
[391362259,1760568632240,-1515.93644941,0.00016074,2]
[391362260,1760568632256,-5197.42355059,0.00016074,2]
[391362261,1760568632266,-1491.05599277,0.000161,2]
[391362262,1760568632275,-1491.05599277,0.000162,2]
[391362263,1760568632284,-166.66,0.00016246,2]
[391362264,1760568632294,-181.6,0.00016438,2]
[391362265,1760568632303,-500.0,0.00016438,2]
[391362266,1760568632313,-166.66,0.00016516,2]
[391362268,1760568632324,-166.66,0.00016561,2]
[391362270,1760568632334,-1084.0,0.00016571,2]
[391362272,1760568632343,-2354.25,0.00016636,30]
[391362274,1760568632353,-171.52216255,0.00017,2]
[391362276,1760568632363,-250.0,0.00017,2]
[391362278,1760568632374,-166.66,0.00017061,2]
[391362280,1760568632383,-200.0,0.00017136,2]
[391362282,1760568632393,-171.52216255,0.000172,2]
[391362284,1760568632402,-181.6,0.00017416,2]
[391362286,1760568632412,-4906.7794597,0.00017484,2]
[391362288,1760568632422,-578.303844,0.00017484,2]
[391362290,1760568632431,-2420.398336,0.00017489,2]
[391362292,1760568632443,-166.66,0.00017606,2]
[391362294,1760568632452,-200.0,0.000178,6]
[391362296,1760568632461,-20408.4873852,0.0001783,2]
[391362299,1760568632473,-1254.41808677,0.0001783,2]
[391362302,1760568632492,-327.77581439,0.0001783,2]
[391362394,1760568640078,-1869.26310137,0.0001783,2]
[391362396,1760568640087,-9251.53638503,0.000179,2]
[391362398,1760568640097,-500.0,0.000179,6]
[391362400,1760568640107,-2570.75223419,0.00017945,2]
[391362402,1760568640117,-500.0,0.00017973,2]
[391362404,1760568640126,-500.0,0.00017973,2]
[391362406,1760568640136,-500.0,0.00017973,2]
[391362408,1760568640146,-475.77190794,0.00017973,2]
[391362410,1760568640155,-500.0,0.00017973,2]
[391362412,1760568640165,-371.60698256,0.00017973,2]
[391362414,1760568640175,-500.0,0.00017973,2]
[391362416,1760568640184,-500.0,0.00017973,2]
[391362418,1760568640198,-500.0,0.00017999,2]
[391362420,1760568640207,-500.0,0.00017999,2]
[391362423,1760568640217,-500.0,0.00017999,2]
[391362426,1760568640227,-500.0,0.00017999,2]
[391362429,1760568640236,-500.0,0.00017999,2]
[391362432,1760568640245,-500.0,0.00017999,2]
[391362435,1760568640258,-152.69157207,0.00017999,2]
[391362437,1760568640267,-500.0,0.00017999,2]
[391362439,1760568640278,-511.78230745,0.00017999,2]
[391362441,1760568640287,-500.0,0.00017999,2]
[391362443,1760568640297,-416.00855498,0.00017999,2]
[391362445,1760568640307,-500.0,0.00017999,2]
[391362447,1760568640316,-500.0,0.00017999,2]
[391362448,1760568640325,-500.0,0.00017999,2]
[391362450,1760568640335,-500.0,0.00017999,2]
[391362452,1760568640345,-500.0,0.00017999,2]
[391362453,1760568640354,-500.0,0.00017999,2]
[391362470,1760568640806,-500.0,0.00017999,2]
[391362471,1760568640816,-500.0,0.00017999,2]
[391362472,1760568640826,-500.0,0.00017999,2]
[391362473,1760568640835,-268.00423438,0.00017999,2]
[391362474,1760568640845,-500.0,0.00017999,2]
[391362475,1760568640854,-500.0,0.00017999,2]
[391362476,1760568640863,-500.0,0.00017999,2]
[391362477,1760568640873,-500.0,0.00017999,2]
[391362478,1760568640882,-500.0,0.00017999,2]
[391362479,1760568640891,-188505.24119217,0.00018,2]
[391362480,1760568640900,-1346.18573281,0.00018,2]
[391362481,1760568640909,-216.43547237,0.00018,2]
[391362482,1760568640919,-6672.76574,0.00018,2]
[391362483,1760568640928,-1000.0,0.00018082,2]
[391362484,1760568640937,-166.66,0.00018151,2]
[391362485,1760568640951,-1346.18573281,0.000182,2]
[391362486,1760568640960,-225.6504058,0.00018391,2]
[391362487,1760568640969,-8907.01229016,0.00018391,2]
[391362488,1760568640979,-2406.7008264,0.00018394,2]
[391362489,1760568640989,-181.6,0.00018394,2]
[391362490,1760568640998,-2406.7008264,0.00018394,2]
[391362491,1760568641009,-1280.51832993,0.00018394,2]
[391362492,1760568641018,-157.94453125,0.00018395,2]
[391362493,1760568641028,-487.10326065,0.00018395,2]
[391362494,1760568641038,-225.6504058,0.00018396,2]
[391362495,1760568641048,-752.16801933,0.00018396,2]
[391362496,1760568641057,-9516.86889531,0.00018398,2]
[391362497,1760568641067,-1346.18573281,0.000184,2]
[391362498,1760568641077,-218.68817822,0.000184,2]
[391362499,1760568641088,-306.50043028,0.000184,2]
[391362500,1760568641096,-160.39800424,0.000184,2]
[391362501,1760568641105,-282.0949197,0.000184,2]
[391362502,1760568641114,-10225.60574034,0.000184,2]
[391362503,1760568641124,-221.68791475,0.000184,2]
[391362504,1760568641133,-162.43544372,0.00018402,2]
[391362505,1760568641142,-205.49904145,0.00018402,2]
[391362506,1760568641152,-1280.51832993,0.00018403,2]
[391362507,1760568641161,-1280.51832993,0.00018407,2]
[391362508,1760568641171,-162.43544372,0.00018407,2]
[391362509,1760568641180,-9275.28523614,0.0001841,2]
[391362510,1760568641195,-1592.3307639,0.0001841,2]
[391362537,1760568643009,-1173.42251106,0.0001841,2]
[391362541,1760568643124,-14856.42987376,0.0001841,2]
[391362557,1760568646226,-458.09408098,0.0001841,2]
[391362559,1760568646237,-2585.17043641,0.0001841,2]
[391362562,1760568646255,-4217.51334497,0.0001841,2]
[391362564,1760568646267,-1823.94239255,0.0001841,2]
[391362635,1760568731476,2269.14579649,0.00027397,120]
[391362636,1760568794178,1600.0,0.00026414,120]
[391362637,1760568827670,500.0,0.00027356,120]
[391362647,1760568973360,779.1675417,0.00027397,120]
[391362648,1760569162213,1000.0,0.00027397,120]
[391362652,1760569370182,2000.0,0.00027397,120]
[391362653,1760569376611,2000.0,0.00027397,120]
[391362654,1760569383640,2000.0,0.00027397,120]
[391362655,1760569391551,2000.0,0.00027397,120]
[391362656,1760569400244,2000.0,0.00027397,120]
[391362657,1760569442262,500.0,0.00027311,120]
[391362658,1760569696332,499.99,0.00027397,120]
[391362659,1760569699266,1000.0,0.00027397,120]
[391362661,1760569755863,417.67,0.00027397,120]
[391362671,1760569832023,-426.01599794,0.000156,2]
[391362672,1760569832037,-426.01599794,0.000158,2]
[391362673,1760569832046,-175.35879412,0.000158,2]
[391362674,1760569832056,-475.49624517,0.00015899,2]
[391362675,1760569832066,-426.01599794,0.000159,2]
[391362676,1760569832077,-426.01599794,0.000161,2]
[391362677,1760569832086,-426.01599794,0.000162,2]
[391362678,1760569832095,-214.45979467,0.00016546,2]
[391362679,1760569832107,-190.43,0.00016712,2]
[391362680,1760569832116,-300.0,0.0001704,2]
[391362681,1760569832126,-500.0,0.00017041,2]
[391362682,1760569832135,-3294.05,0.00017041,2]
[391362683,1760569832144,-4684.43,0.00017041,2]
[391362684,1760569832154,-726.3,0.00017041,2]
[391362685,1760569832164,-6013.98,0.00017064,2]
[391362686,1760569832173,-185.26,0.00017064,2]
[391362687,1760569832183,-20182.91,0.00017064,2]
[391362688,1760569832193,-607.15128928,0.00017159,2]
[391362689,1760569832202,-505.0,0.00017159,2]
[391362690,1760569832212,-1852.42,0.00017168,2]
[391362691,1760569832221,-250.0,0.00017168,7]
[391362692,1760569832231,-666.0,0.00017568,3]
[391362693,1760569832240,-1000.0,0.00017568,2]
[391362694,1760569832249,-1600.0,0.00017609,2]
[391362695,1760569832258,-200.0,0.000178,6]
[391362696,1760569832269,-196.0,0.00017839,2]
[391362697,1760569832278,-500.0,0.000179,6]
[391362698,1760569832288,-538.47429313,0.00018,2]
[391362699,1760569832297,-181.17533396,0.00018,2]
[391362700,1760569832307,-211.51253036,0.00018,2]
[391362701,1760569832316,-179.50913686,0.00018,2]
[391362702,1760569832326,-199.85193376,0.00018,2]
[391362703,1760569832336,-742.16874514,0.00018042,2]
[391362705,1760569832345,-28437.9827774,0.0001811,2]
[391362707,1760569832354,-21968.8998052,0.00018113,2]
[391362709,1760569832364,-555.420129,0.00018113,2]
[391362710,1760569832373,-1815.298752,0.00018113,2]
[391362711,1760569832383,-11564.254179,0.00018113,2]
[391362712,1760569832392,-1734.9115321,0.00018113,2]
[391362713,1760569832402,-538.47429313,0.000182,2]
[391362714,1760569832411,-5671.3219,0.0001823,2]
[391362715,1760569832421,-6610.5619,0.000183,2]
[391362716,1760569832430,-845.39238065,0.00018319,2]
[391362717,1760569832440,-1569.927,0.00018384,2]
[391362720,1760569832449,-500.0,0.00018392,2]
[391362723,1760569832459,-151.0,0.00018394,2]
[391362725,1760569832468,-452.52329299,0.00018399,2]
[391362727,1760569832477,-233.3619,0.000184,2]
[391362729,1760569832487,-2131.5839,0.000184,2]
[391362731,1760569832496,-538.47429313,0.000184,2]
[391362733,1760569832505,-161.74012843,0.000184,2]
[391362735,1760569832517,-359.76686085,0.000184,2]
[391362736,1760569832527,-12802.18241086,0.000184,2]
[391362737,1760569832536,-834.39135194,0.000184,2]
[391362738,1760569832546,-13271.78849206,0.000184,2]
[391362739,1760569832556,-10223.39989363,0.0001841,2]
[391362740,1760569832569,-36850.67898904,0.0001841,2]
[391362741,1760569832604,-1787.39777679,0.0001841,2]
[391362742,1760569838135,-305.96311241,0.0001841,2]
[391362743,1760569838147,-58092.32942688,0.0001841,2]
[391362744,1760569838156,-684.99680482,0.00018411,2]
[391362745,1760569838167,-2628.47986898,0.00018411,2]
[391362783,1760569840377,-140613.47796954,0.00018411,2]
[391362784,1760569840386,-225.6504058,0.00018411,2]
[391362785,1760569840396,-205.49904145,0.00018411,2]
[391362786,1760569840406,-296.62318293,0.00018412,2]
[391362787,1760569840415,-30106.40252789,0.00018412,2]
[391362788,1760569840424,-370.95873908,0.00018414,2]
[391362789,1760569840435,-19458.73967262,0.00018414,2]
[391362790,1760569840444,-8907.01229016,0.00018415,2]
[391362791,1760569840453,-30106.40252789,0.00018419,2]
[391362792,1760569840462,-370.95873908,0.0001842,2]
[391362793,1760569840471,-522.22135363,0.0001842,2]
[391362794,1760569840481,-1458.8195578,0.00018421,2]
[391362795,1760569840490,-201.47188389,0.00018421,2]
[391362796,1760569840499,-1887.86564388,0.00018422,2]
[391362802,1760569840574,-1903.81300918,0.00018422,2]
[391362805,1760569843214,-402.20060172,0.000156,2]
[391362806,1760569843223,-402.20060172,0.000158,2]
[391362807,1760569843232,-402.20060172,0.000159,2]
[391362808,1760569843242,-402.20060172,0.000161,2]
[391362809,1760569843251,-2324.30891112,0.00018422,2]
[391362810,1760569843281,-13342.75210844,0.00018422,2]
[391362811,1760569843291,-162.43544372,0.00018424,2]
[391362812,1760569843300,-175.14688674,0.00018429,2]
[391362813,1760569843310,-370.95873908,0.00018431,2]
[391362814,1760569843319,-205.49904145,0.00018431,2]
[391362815,1760569843328,-157.94453125,0.00018431,2]
[391362816,1760569843337,-7029.6597648,0.00018432,2]
[391362817,1760569843346,-671.5729463,0.00018432,2]
[391362818,1760569843356,-684.99680482,0.00018434,2]
[391362819,1760569843365,-218.89949554,0.00018435,2]
[391362820,1760569843374,-752.16801933,0.00018436,2]
[391362821,1760569843383,-296.62318293,0.00018439,2]
[391362822,1760569843392,-752.16801933,0.00018442,2]
[391362823,1760569843402,-7029.6597648,0.00018443,2]
[391362824,1760569843411,-175.14688674,0.00018445,2]
[391362825,1760569843420,-19458.73967262,0.00018447,2]
[391362826,1760569843430,-8907.01229016,0.00018451,2]
[391362827,1760569843439,-5740.60965266,0.00018453,2]
[391362828,1760569843449,-671.5729463,0.00018454,2]
[391362829,1760569843458,-218.89949554,0.00018457,2]
[391362830,1760569843467,-5981.12829654,0.00018457,2]
[391362831,1760569843477,-684.99680482,0.00018461,2]
[391362832,1760569843486,-8830.02670608,0.00018464,2]
[391362833,1760569843496,-143241.95783852,0.00018466,2]
[391362834,1760569843505,-1458.8195578,0.00018467,2]
[391362835,1760569843515,-218.89949554,0.00018467,2]
[391362836,1760569843524,-487.10326065,0.00018468,2]
[391362837,1760569843535,-671.5729463,0.00018468,2]
[391362838,1760569843546,-487.10326065,0.00018468,2]
[391362839,1760569843555,-296.62318293,0.00018468,2]
[391362840,1760569843565,-157.94453125,0.0001847,2]
[391362841,1760569843574,-175.14688674,0.00018471,2]
[391362842,1760569843583,-500.0,0.00018473,2]
[391362843,1760569843593,-500.0,0.00018473,2]
[391362844,1760569843602,-500.0,0.00018473,2]
[391362845,1760569843611,-500.0,0.00018473,2]
[391362846,1760569843621,-500.0,0.00018473,2]
[391362847,1760569843630,-500.0,0.00018473,2]
[391362848,1760569843640,-500.0,0.00018473,2]
[391362850,1760569843649,-2406.7008264,0.00018474,2]
[391362852,1760569843659,-9516.86889531,0.00018475,2]
[391362854,1760569843668,-5981.12829654,0.00018476,2]
[391362856,1760569843678,-1458.8195578,0.00018477,2]
[391362858,1760569843687,-7029.6597648,0.00018481,2]
[391362860,1760569843697,-5981.12829654,0.00018482,2]
[391362862,1760569843706,-5740.60965266,0.00018482,2]
[391362863,1760569843715,-8830.02670608,0.00018484,2]
[391362865,1760569843725,-8830.02670608,0.00018485,2]
[391362867,1760569843734,-201.47188389,0.00018487,2]
[391362868,1760569843743,-201.47188389,0.00018487,2]
[391362869,1760569843753,-9516.86889531,0.00018488,2]
[391362870,1760569843762,-214.03374265,0.0001849,2]
[391362871,1760569843771,-162.65,0.0001849,2]
[391362872,1760569843784,-162.65,0.0001849,2]
[391362873,1760569843794,-5740.60965266,0.00018491,2]
[391362874,1760569843804,-30106.40252789,0.00018495,2]
[391362875,1760569843814,-286.86424722,0.00018499,2]
[391362876,1760569843823,-500.0,0.00018499,2]
[391362877,1760569843833,-500.0,0.00018499,2]
[391362878,1760569843842,-546.22317278,0.00018499,2]
[391362879,1760569843852,-500.0,0.00018499,2]
[391362880,1760569843861,-500.0,0.00018499,2]
[391362881,1760569843871,-500.0,0.00018499,2]
[391362882,1760569843880,-500.0,0.00018499,2]
[391362883,1760569843890,-500.0,0.00018499,2]
[391362884,1760569843899,-462.66708811,0.00018499,2]
[391362885,1760569843909,-999044.50958033,0.000185,2]
[391362886,1760569843918,-420.0,0.00018611,2]
[391362887,1760569843927,-166.66,0.00018697,2]
[391362888,1760569843936,-1000.0,0.0001876,2]
[391362889,1760569843946,-13518.34,0.00018795,2]
[391362890,1760569843956,-150.8,0.000188,2]
[391362891,1760569843965,-1155.00000005,0.0001899,2]
[391362892,1760569843975,-150.8,0.0001899,2]
[391362893,1760569843984,-150.8,0.0001899,2]
[391362894,1760569843993,-179.88401441,0.00018999,2]
[391362895,1760569844002,-500.0,0.00018999,2]
[391362896,1760569844011,-411.3132687,0.00018999,2]
[391362897,1760569844020,-277.54413866,0.00018999,2]
[391362898,1760569844035,-325.66277177,0.00018999,2]
[391362899,1760569844044,-520.7025861,0.00018999,2]
[391362900,1760569844053,-194.28089706,0.00018999,2]
[391362901,1760569844063,-413911.78023081,0.00019,2]